{"text_format":"1","workbook":"xlsx","n_sheets":3,"sheets":["DATA","UH OCH ENERGIPLAN","DIAGRAM"],"not_rendered":{"charts":1,"images":0,"macros":1,"external_links":0,"defined_names":58,"comments":0,"pivot_tables":0},"unopened":[],"bounds":{"document_bytes":16777216,"sheet_cells":100000,"rows_first":2000,"rows_last":500,"rows_between":2000,"halvings":0,"cell_chars":16384,"cell_head_chars":4096},"cells_cut":0,"cells_raw":0,"read":"whole","date_system":"1900"}

{"sheet":"DATA","index":0,"n_rows":50,"n_cols":52,"rows_kept":50,"cut":false,"hidden":true,"merged":[]}
[]
["HUVUDOMRÅDE","Välj huvudområde","GRUNDLÄGGNING","MARKYTOR","LEDNINGSNÄT","YTTERTAK","FASAD","GEMENSAMHETSUTRYMMEN","VIND","TAPPVATTENSYSTEM","AVLOPPSSYSTEM","VÄRMESYSTEM","LUFTBEHANDLINGSSYSTEM","ELSYSTEM","KOMMUNIKATIONSSYSTEM","HISSAR","STYRSYSTEM"]
[]
["DELOMRÅDEN",null,"DRÄNERING","VEGETATIONSYTOR","VATTENLEDNINGSNÄT","TAKBELÄGGNINGAR OCH TÄTSKIKT","FASADYTOR","TRAPPHUS","TAKSTOLAR OCH UNDERLAGSTAK","LEDNINGAR OCH ARMATURER","AVLOPPSLEDNINGAR OCH BRUNNAR","VÄRMEPUMP","S SYSTEM","BELYSNING","SYSTEM FÖR ENTRE OCH PASSERKONTROLL","HISSMASKIN","DUCAR"]
[null,null,null,"MARKBELÄGGNING","SPILLVATTENNÄT","TAKAVVATTNING","BALKONGER OCH LOFTGÅNGAR","TVÄTTSTUGA",null,null,"PUMPGROPAR","FJÄRRVÄRME","F SYSTEM","ELCENTRAL","DATAKOMMUNIKATIONSSYSTEM","HISSKORG","GIVARE"]
[null,null,null,null,"DAGVATTENNÄT","TAKSÄKERHET","FÖNSTER OCH FÖNSTERDÖRRAR","FÖRRÅD",null,null,"AVSKILJARE","PANNOR","FT SYSTEM","GRUPPCENTRAL",null,"STYRUTRUSTNING","STÄLLDON"]
[null,null,null,null,"VÄRMENÄT","TAKKOMPLETTERINGAR","ENTREER OCH PORTAR","DRIFTSUTRYMMEN",null,null,null,"ÖPPNA SPISAR OCH KAKELUGNAR","FTX SYSTEM","ELKANALISATION"]
[null,null,null,null,null,null,"FASADKOMPLETTERINGAR","KÄLLARGÅNGAR",null,null,null,"VÄRMERÖR","KANALER"]
[null,null,null,null,null,null,null,"ÖVRIGA GEMENSAMMA UTRYMMEN",null,null,null,"RADIATORER","LUFTDON"]
[null,null,null,null,null,null,null,null,null,null,null,"GOLVVÄRME"]
[null,null,null,null,null,null,null,null,null,null,null,"ÖVRIGT"]
[]
["ENERGIÅTGÄRDER",null,"Utvändig tilläggsisolering av grund","Om markvärme, kontrollera funktion (givare) och styrning","Isolera varmvatten - och VVC-rör","Tilläggsisolering av vind med 20 cm (Fuktkompetens bör anlitas)","Tilläggsisolering av fasad, 5 cm (Fuktkompetens bör anlitas)","Sänk temperaturen (under lägenhetstemperatur)","Tilläggsisolering av vind med 20 cm (Fuktkompetens bör anlitas)","Isolering av rör och ventiler","Installera värmeåtervinning av avloppsvatten i samband med stambyte","Installera frånluftsvärmepump","Återvinn värmeenergi med FTX","Byte till LED-belysning","Tätning av genomföringar",null,"Byte till energieffektivare utrustning"]
[null,null,"Annan","Annan","Annan","Tilläggsisolering av vind med 30 cm (Fuktkompetens bör anlitas)","Tilläggsisolering av fasad, 10 cm (Fuktkompetens bör anlitas)","Annan","Tilläggsisolering av vind med 30 cm (Fuktkompetens bör anlitas)","Byte till snålspolande armaturer","Annan","Installera värmepump (berg, mark, sjö)","Komplettera med Geo FTX","Styrning av belysning (närvarostyrning, akustisk styrning, tidsstyrning)","Annan",null,"Uppkoppling till internet för digital styrning"]
[null,null,null,null,null,"Tilläggsisolering av vind med 50 cm (Fuktkompetens bör anlitas)","Tilläggsisolering av fasad, 30 cm (Fuktkompetens bör anlitas)",null,"Tilläggsisolering av vind med 50 cm (Fuktkompetens bör anlitas)","Annan",null,"Installera luft/luftvärmepump","Annan","Annan",null,null,"Annan"]
[null,null,null,"Om markvärme, kontrollera funktion (givare) och styrning","Isolering av värmerör","Installation av solceller","Installation av byggnadsintegrerade solceller","Byte till energieffektiva tvättmaskiner","Annan",null,"Välj pump med energieffektiv motor ","Installera luft/vattenvärmepump",null,null,"Tätning av genomföringar"]
[null,null,null,"Annan","Annan","Installation av solfångare","Annan","Kall- och varmvattenanslut tvättmaskiner",null,null,"Annan","Byte till energieffektivare värmepump","Installera tryckstyrda energieffektiva F-fläktar",null,"Annan",null,"Byte till energieffektivare utrustning"]
[null,null,null,null,null,"Annan",null,"Byte till värmepumpstorktumlare och nedsäkring av huvudsäkring",null,null,null,"Annan","Återvinn värmeenergi med FTX",null,null,null,"Belysning, rumsgivare, ventilation, givare elslingor i stuprör och för markvärme"]
[null,null,null,null,null,null,"Utanpåliggande infästning","Torkskåp med värmepump och nedsäkring av huvudsäkring",null,null,null,null,"Komplettera med Geo FTX",null,null,null,"Annan"]
[null,null,null,null,null,"Kontrollera funktion (givare) och styrning för värmeslingor i stuprör /stuprör och rännor","Annan","Installera värmeåtervinning i frånluftstorkskåp",null,null,null,"Byte till datoriserad undercentral (DUC)","Annan"]
[null,null,null,null,null,"Annan",null,"Annan",null,null,null,"Byte av ventiler",null,null,null,null,"Byte till energieffektivare utrustning"]
[null,null,null,null,null,null,"Byte till fönster och balkongdörrar med lågt U-värde",null,null,null,null,"Byte av shuntar","Återvinn värmeenergi med FTX",null,null,null,"Annan"]
[null,null,null,null,null,null,"Byte tätningslist i fönster","Sänk temperaturen  (under lägenhetstemperatur)",null,null,null,"Reglering av returtemperaturer","Komplettera med Geo FTX"]
[null,null,null,null,null,null,"Tätning av altandörrar","Annan",null,null,null,"Annan","Annan"]
[null,null,null,null,null,null,"Rikta fönsterkarmar"]
[null,null,null,null,null,null,"Isolera mellan infästning fönster och fasad, drevning","Sänk temperaturen  (under lägenhetstemperatur)",null,null,null,"Regelbunden service med injustering","Komplettera med Geo FTX"]
[null,null,null,null,null,null,"Justering av gångjärn och beslag","Annan",null,null,null,"Annan","Filterbyte"]
[null,null,null,null,null,null,"Ersätt inre ruta med isolerglas i befintliga fönster",null,null,null,null,null,"Kontrollera temperaturverkningsgrad"]
[null,null,null,null,null,null,"Montera kassett med isolerglad i befintliga fönster","Sänk temperaturen  (under lägenhetstemperatur)",null,null,null,"Tätning av rökgaskanal/murstock","Annan"]
[null,null,null,null,null,null,"Annan","Annan",null,null,null,"Byt öppna spisen mot kamin, vattenmantlad"]
[null,null,null,null,null,null,null,null,null,null,null,"Annan","Rengöring av kanaler"]
[null,null,null,null,null,null,"Byte av entrédörr och portar till nya med lägre U-värde","Sänk temperaturen och behovstyr i styrelserum ",null,null,null,null,"Isolering av kanaler i kalla utrymmen"]
[null,null,null,null,null,null,"Tätning av entréer och portar","Annan",null,null,null,"Isolering av värmerör","Annan"]
[null,null,null,null,null,null,"Justering av gångjärn och beslag",null,null,null,null,"Annan"]
[null,null,null,null,null,null,"Byt släplist i dörr",null,null,null,null,null,"Injustering av don"]
[null,null,null,null,null,null,"Sänk temperaturen (under lägenhetstemperatur)",null,null,null,null,"Byte av ventiler","Annan"]
[null,null,null,null,null,null,"Annan",null,null,null,null,"Byte av termostat"]
[null,null,null,null,null,null,null,null,null,null,null,"Injustering av värmesystem"]
[null,null,null,null,null,null,"Tätning av genomföringar",null,null,null,null,"Annan"]
[null,null,null,null,null,null,"Annan"]
[null,null,null,null,null,null,null,null,null,null,null,"Injustering av golvvärme"]
[null,null,null,null,null,null,null,null,null,null,null,"Annan"]
[]
[null,null,null,null,null,null,null,null,null,null,null,"Styrning av cirkulationspump"]
[null,null,null,null,null,null,null,null,null,null,null,"Annan"]
[]
[]
["UNDERHÅLLSÅR",{"$f":"'UH OCH ENERGIPLAN'!C8","v":2018},{"$f":"B48+1","v":2019},{"$f":"C48+1","v":2020},2021,2022,2023,2024,2025,2026,2027,2028,2029,2030,2031,2032,2033,2034,2035,2036,2037,2038,2039,2040,2041,2042,2043,2044,2045,2046,2047,2048,2049,2050,2051,2052,2053,2054,2055,2056,2057,2058,2059,2060,2061,2062,2063,2064,2065,2066,2067,2068]
[]
["INTERVALL",1,2,3,4,5,6,7,8,9,10,11,12,13,14,15,16,17,18,19,20,21,22,23,24,25,26,27,28,29,30,31,32,33,34,35,36,37,38,39,40,41,42,43,44,45,46,47,48,49,50]

{"sheet":"UH OCH ENERGIPLAN","index":1,"n_rows":79,"n_cols":21,"rows_kept":79,"cut":false,"hidden":false,"merged":[]}
[null,"Bilaga 3 Excell_ Underhålls och energiplan"]
[]
[null,"UNDERHÅLLS- OCH ENERGIPLAN"]
[]
[null,"FASTIGHETSBETECKNING","BRF Grundbulten"]
[null,"DATUM","2018-10-15"]
[null,"UTFÖRD AV","Konsult: Hållbar framtid"]
[null,"STARTÅR",2018]
[]
[null,{"$f":"DATA!A2","v":"HUVUDOMRÅDE"},"DELOMRÅDE","BYGGNAD",null,"UNDERHÅLLSÅTGÄRD","MÄNGD","ENHET","UNDERHÅLLSKOSTNAD [kr]","FÖRSTA ÅTGÄRDSÅR","INTERVALL",null,"ENERGIÅTGÄRD","ENERGIÅTGÄRD (OM ANNAN)","MÄNGD","ENHET","ENERGIÅTGÄRDSKOSTNAD [kr]","FÖRSTA ÅTGÄRDSÅR","INTERVALL",null,"KOMMENTAR"]
[]
[null,"GRUNDLÄGGNING","DRÄNERING",1,null,"Dränering av grund",250,"kvm",250000,2024,30,null,"Utvändig tilläggsisolering av grund",null,250,"kvm",40000,2024,30]
[null,"YTTERTAK","TAKBELÄGGNINGAR OCH TÄTSKIKT",1,null,"Byte av takplåt",300,"kvm",280000,2020,25,null,"Installation av solceller",null,16,"kW",160000,2020,30]
[null,"YTTERTAK","TAKAVVATTNING",1,null,"Byte av stuprännor",60,"m",45000,2021,10,null,"Kontrollera funktion (givare) och styrning för värmeslingor i stuprör /stuprör och rännor",null,2,"st",16000,2021,5]
[null,"FASAD","FÖNSTER OCH FÖNSTERDÖRRAR",1,null,"Målning av fönster",150,"st",150000,2021,14,null,"Ersätt inre ruta med isolerglas i befintliga fönster",null,150,"st",75000,2021,30]
[null,"LUFTBEHANDLINGSSYSTEM","KANALER",1,null,"Rensning av kanaler",60,"m",25000,2021,15]
[null,"Välj huvudområde"]
[null,"Välj huvudområde"]
[null,"Välj huvudområde"]
[null,"Välj huvudområde"]
[null,"Välj huvudområde"]
[null,"Välj huvudområde"]
[null,"Välj huvudområde"]
[null,"Välj huvudområde"]
[null,"Välj huvudområde"]
[null,"Välj huvudområde"]
[null,"Välj huvudområde"]
[null,"Välj huvudområde"]
[null,"Välj huvudområde"]
[null,"Välj huvudområde"]
[null,"Välj huvudområde"]
[null,"Välj huvudområde"]
[null,"Välj huvudområde"]
[null,"Välj huvudområde"]
[null,"Välj huvudområde"]
[null,"Välj huvudområde"]
[null,"Välj huvudområde"]
[null,"Välj huvudområde"]
[null,"Välj huvudområde"]
[null,"Välj huvudområde"]
[null,"Välj huvudområde"]
[null,"Välj huvudområde"]
[null,"Välj huvudområde"]
[null,"Välj huvudområde"]
[null,"Välj huvudområde"]
[null,"Välj huvudområde"]
[null,"Välj huvudområde"]
[null,"Välj huvudområde"]
[null,"Välj huvudområde"]
[null,"Välj huvudområde"]
[null,"Välj huvudområde"]
[null,"Välj huvudområde"]
[null,"Välj huvudområde"]
[null,"Välj huvudområde"]
[null,"Välj huvudområde"]
[null,"Välj huvudområde"]
[null,"Välj huvudområde"]
[null,"Välj huvudområde"]
[null,"Välj huvudområde"]
[null,"Välj huvudområde"]
[null,"Välj huvudområde"]
[null,"Välj huvudområde"]
[null,"Välj huvudområde",null,null,null," "]
[null,"Välj huvudområde"]
[null,"Välj huvudområde"]
[null,"Välj huvudområde"]
[null,"Välj huvudområde"]
[null,"Välj huvudområde"]
[null,"Välj huvudområde"]
[null,"Välj huvudområde"]
[null,"Välj huvudområde"]
[null,"Välj huvudområde"]
[null,"Välj huvudområde"]
[null,"Välj huvudområde"]
[null,"Välj huvudområde"]
[null,"Välj huvudområde"]
[null,"Välj huvudområde"]
[null,"Välj huvudområde"]
[null,"Välj huvudområde"]

{"sheet":"DIAGRAM","index":2,"n_rows":52,"n_cols":15,"rows_kept":52,"cut":false,"hidden":false,"merged":[]}
["År","Underhållskostnad","Energiåtgärdskostnad",null,null,null,null,null,null,null,null,null,null,"Planerade åtgärder"]
[{"$f":"'UH OCH ENERGIPLAN'!C8","v":2018},{"$f":"CountMaint(A2)","v":0},{"$f":"CountEnergy(A2)","v":0}]
[{"$f":"A2+1","v":2019},{"$f":"CountMaint(A3)","v":0},{"$f":"CountEnergy(A3)","v":0},null,null,null,null,null,null,null,null,null,null,"År","Åtgärd"]
[{"$f":"A3+1","v":2020},280000,160000,null,null,null,null,null,null,null,null,null,null,2020,"Byte av takplåt"]
[{"$f":"A4+1","v":2021},220000,91000,null,null,null,null,null,null,null,null,null,null,2020,"Installation av solceller"]
[2022,0,0,null,null,null,null,null,null,null,null,null,null,2021,"Byte av stuprännor"]
[2023,0,0,null,null,null,null,null,null,null,null,null,null,2021,"Målning av fönster"]
[2024,250000,40000,null,null,null,null,null,null,null,null,null,null,2021,"Rensning av kanaler"]
[2025,0,0,null,null,null,null,null,null,null,null,null,null,2021,"Kontrollera funktion (givare) och styrning för värmeslingor i stuprör /stuprör och rännor"]
[2026,0,16000,null,null,null,null,null,null,null,null,null,null,2021,"Ersätt inre ruta med isolerglas i befintliga fönster"]
[2027,0,0,null,null,null,null,null,null,null,null,null,null,2024,"Dränering av grund"]
[2028,0,0,null,null,null,null,null,null,null,null,null,null,2024,"Utvändig tilläggsisolering av grund"]
[2029,0,0]
[2030,0,0]
[2031,45000,16000]
[2032,0,0]
[2033,0,0]
[2034,0,0]
[2035,150000,0]
[2036,25000,16000]
[2037,0,0]
[2038,0,0]
[2039,0,0]
[2040,0,0]
[2041,45000,16000]
[2042,0,0]
[2043,0,0]
[2044,0,0]
[2045,280000,0]
[2046,0,16000]
[2047,0,0]
[2048,0,0]
[2049,150000,0]
[{"$f":"A33+1","v":2050},{"$f":"CountMaint(A34)","v":0},{"$f":"CountEnergy(A34)","v":160000}]
[2051,70000,91000]
[2052,0,0]
[2053,0,0]
[2054,250000,40000]
[2055,0,0]
[2056,0,16000]
[2057,0,0]
[2058,0,0]
[2059,0,0]
[2060,0,0]
[2061,45000,16000]
[2062,0,0]
[2063,150000,0,{"$f":"SUM(B2:B52)","v":1985000},{"$f":"SUM(C2:C52)","v":710000},{"$f":"(D47+E47)/50","v":53900}]
[2064,0,0]
[2065,0,0]
[2066,25000,16000]
[2067,0,0]
[2068,0,0]